bitfinex/quotes_BTCUSD_20250813
["timestamp","ask_amount","ask_price","bid_price","bid_amount"]
[1755099966662,0.08772325,121140.0,121130.0,0.61810707]
[1755099967118,0.08772325,121140.0,121130.0,0.16094739]
[1755099967344,0.08772325,121140.0,121130.0,0.61810707]
[1755099967555,0.08974325,121140.0,121130.0,0.82473707]
[1755099967758,0.08974325,121140.0,121130.0,0.36555739]
[1755099967759,0.10164558,121140.0,121130.0,0.36555739]
[1755099967964,0.10164558,121140.0,121130.0,0.95283707]
[1755099969240,0.10164558,121140.0,121130.0,0.82271707]
[1755099969724,0.10164558,121140.0,121130.0,0.49563739]
[1755099969948,0.10164558,121140.0,121130.0,0.82271707]
[1755099970169,0.10164558,121140.0,121130.0,0.95279707]
[1755099970376,0.10164558,121140.0,121130.0,0.36555739]
[1755099970584,0.10164558,121140.0,121130.0,0.95279707]
[1755099970843,0.08772325,121140.0,121130.0,0.46255968]
[1755099971053,0.08772325,121140.0,121130.0,0.59263968]
[1755099971263,0.08772325,121140.0,121130.0,0.48729768]
[1755099971466,0.08772325,121140.0,121130.0,0.72021768]
[1755099971673,0.08772325,121140.0,121130.0,0.91801768]
[1755099972067,0.08772325,121140.0,121130.0,0.330778]
[1755099972304,0.08772325,121140.0,121130.0,0.91801768]
[1755099972517,0.08772325,121140.0,121130.0,0.68509768]
[1755099972727,0.08772325,121140.0,121130.0,0.81517768]
[1755099972954,0.08772325,121140.0,121130.0,1.61233736]
[1755099973201,0.005,121140.0,121130.0,1.41453736]
[1755099973428,0.005,121140.0,121130.0,1.51454231]
[1755099974101,0.002,121140.0,121130.0,1.51454231]
[1755099974591,0.002,121140.0,121130.0,1.38446231]
[1755099974823,0.003,121140.0,121130.0,1.51454231]
[1755099975293,0.002,121140.0,121130.0,1.51454231]
[1755099975500,0.001,121140.0,121130.0,1.51454231]
[1755099976330,0.001,121140.0,121130.0,1.30190638]
[1755099976559,0.001,121140.0,121130.0,1.51450231]
[1755099977412,0.001,121140.0,121130.0,1.38446231]
[1755099977871,0.001,121140.0,121130.0,1.51450231]
[1755099978355,0.001,121140.0,121130.0,1.54722625]
[1755099980925,0.001,121140.0,121130.0,1.41718625]
[1755099981132,0.001,121140.0,121130.0,1.54722625]
[1755099981509,0.001,121140.0,121130.0,1.84786625]
[1755099981912,0.001,121140.0,121130.0,1.76527032]
[1755099982221,0.001,121140.0,121130.0,1.66243032]
[1755099982437,0.001,121140.0,121130.0,1.74498625]
[1755099982874,0.001,121140.0,121130.0,1.54718625]
[1755099983590,0.001,121140.0,121130.0,1.41718625]
[1755099983737,0.001,121140.0,121130.0,1.54718625]
[1755099984637,0.001,121140.0,121130.0,1.46463032]
[1755099985252,0.001,121140.0,121130.0,1.41718625]
[1755099985459,0.001,121140.0,121130.0,1.46463032]
[1755099985669,0.00302,121140.0,121130.0,0.86002162]
[1755099985882,0.00302,121140.0,121130.0,0.96000822]
[1755099986100,0.00615,121140.0,121130.0,1.08996822]
[1755099986690,0.00615,121140.0,121130.0,0.96000822]
[1755099987348,0.00302,121140.0,121130.0,1.08996822]
[1755099987566,0.00302,121140.0,121130.0,0.98673162]
[1755099990818,0.00302,121140.0,121130.0,0.85677162]
[1755099991028,0.00302,121140.0,121130.0,0.98673162]
[1755099991435,0.00302,121140.0,121130.0,1.28733162]
[1755099992327,0.001,121140.0,121130.0,1.7477013]
[1755099993377,0.001,121140.0,121130.0,1.7476613]
[1755099993809,0.001,121140.0,121130.0,1.5149013]
[1755099994014,0.001,121140.0,121130.0,1.6448213]
[1755099995918,0.001,121140.0,121130.0,1.4470613]
[1755099997585,0.001,121140.0,121130.0,1.3171413]
[1755099997925,0.001,121140.0,121130.0,1.27700983]
[1755099998100,0.001,121140.0,121130.0,1.27592983]
[1755099998310,0.001,121140.0,121130.0,1.30066583]
[1755099998749,0.003,121140.0,121130.0,1.30066583]
[1755099998966,0.00615,121140.0,121130.0,1.30066583]
[1755099999178,0.00615,121140.0,121130.0,1.26794189]
[1755099999721,0.003,121140.0,121130.0,1.26794189]
[1755100000776,0.003,121140.0,121130.0,1.13806189]
[1755100000970,0.003,121140.0,121130.0,1.26794189]
[1755100001392,0.00615,121140.0,121130.0,1.13806189]
[1755100001602,0.08887325,121140.0,121130.0,0.97937221]
[1755100001805,0.08887325,121140.0,121130.0,1.10921221]
[1755100002650,0.08887325,121140.0,121130.0,1.033076]
[1755100003944,0.08887325,121140.0,121130.0,0.903236]
[1755100003945,0.12439058,121140.0,121130.0,0.903236]
[1755100004159,0.12439058,121140.0,121130.0,1.033076]
[1755100004368,0.08887325,121140.0,121130.0,0.903236]
[1755100004585,0.08887325,121140.0,121130.0,1.033076]
[1755100004796,0.08887325,121140.0,121130.0,0.835316]
[1755100005498,0.08887325,121140.0,121130.0,0.705476]
[1755100005707,0.08887325,121140.0,121130.0,0.835316]
[1755100005933,0.08887325,121140.0,121130.0,0.837446]
[1755100007156,0.08887325,121140.0,121130.0,0.707606]
[1755100007387,0.08887325,121140.0,121130.0,0.837446]
[1755100008255,0.08372325,121140.0,121130.0,0.840656]
[1755100008706,0.08372325,121140.0,121130.0,1.29781568]
[1755100008926,0.08372325,121140.0,121130.0,1.29460568]
[1755100009567,0.08372325,121140.0,121130.0,0.837446]
[1755100010394,0.08372325,121140.0,121130.0,0.837406]
[1755100011595,0.08372325,121140.0,121130.0,1.138046]
[1755100011802,0.08372325,121140.0,121130.0,1.008246]
[1755100012016,0.08572325,121140.0,121130.0,1.138046]
[1755100012439,0.12439058,121140.0,121130.0,1.006116]
[1755100012660,0.12439058,121140.0,121130.0,1.00674459]
[1755100012878,0.08887325,121140.0,121130.0,1.13650459]
[1755100013086,0.08887325,121140.0,121130.0,1.00674459]
[1755100013295,0.08887325,121140.0,121130.0,1.11176859]
[1755100013720,0.20732325,121140.0,121130.0,0.13017238]
[1755100013945,0.20732325,121140.0,121130.0,0.15646379]
[1755100014166,0.31085277,121140.0,121120.0,0.56062827]
[1755100014373,0.08272325,121130.0,121120.0,0.45715968]
[1755100014579,0.08787325,121130.0,121120.0,0.58691968]
[1755100015483,0.08787325,121130.0,121120.0,0.12976]
[1755100015710,0.08799447,121130.0,121120.0,0.12976]
[1755100015929,0.08799447,121130.0,121120.0,0.58691968]
[1755100016141,0.10863892,121130.0,121120.0,0.58691968]
[1755100016377,0.11063892,121130.0,121120.0,0.58691968]
[1755100016597,0.11363892,121130.0,121120.0,0.58691968]
[1755100017009,0.11363892,121130.0,121120.0,0.45715968]
[1755100017219,0.11363892,121130.0,121120.0,0.58687968]
[1755100017427,0.11363892,121130.0,121120.0,0.12972]
[1755100017775,0.09299447,121130.0,121120.0,0.91431936]
[1755100018087,0.09299447,121130.0,121120.0,1.04407936]
[1755100018296,0.09299447,121130.0,121120.0,0.45715968]
[1755100018650,0.09299447,121130.0,121120.0,0.58687968]
[1755100019657,0.09299447,121130.0,121120.0,0.45715968]
[1755100019868,0.10479392,121130.0,121120.0,0.58687968]
[1755100020371,0.10479392,121130.0,121120.0,1.04403936]
[1755100020588,0.09299447,121130.0,121120.0,0.91431936]
[1755100020796,0.08784447,121130.0,121120.0,1.39439137]
[1755100021008,0.08784447,121130.0,121120.0,1.40266338]
[1755100021220,0.08784447,121130.0,121120.0,1.38611936]
[1755100021436,0.09276447,121130.0,121120.0,0.45715968]
[1755100021664,0.12704092,121130.0,121120.0,0.4304]
[1755100021875,0.19388863,121130.0,121120.0,0.4304]
[1755100022959,0.18888863,121130.0,121120.0,0.4304]
[1755100023162,0.19288863,121130.0,121120.0,0.4304]
[1755100023372,0.19288863,121130.0,121120.0,0.75783968]
[1755100023373,0.10404092,121130.0,121120.0,0.75783968]
[1755100023586,0.10404092,121130.0,121120.0,0.88755968]
[1755100023845,0.10404092,121130.0,121120.0,1.24187936]
[1755100024060,0.09912092,121130.0,121120.0,1.11423936]
[1755100024280,0.09912092,121130.0,121120.0,1.24395936]
[1755100024504,0.09912092,121130.0,121120.0,1.04611936]
[1755100024707,0.08984447,121130.0,121120.0,0.57834263]
[1755100025368,0.09181447,121130.0,121120.0,0.57834263]
[1755100026006,0.08984447,121130.0,121120.0,0.57834263]
[1755100026222,0.08984447,121130.0,121120.0,0.92144263]
[1755100027099,0.08584447,121130.0,121120.0,0.92144263]
[1755100028442,0.08284447,121130.0,121120.0,0.92144263]
[1755100028798,0.08384447,121130.0,121120.0,0.92144263]
[1755100029214,0.08384447,121130.0,121120.0,0.92140263]
[1755100031498,0.08384447,121130.0,121120.0,1.22212263]
[1755100031921,0.08384447,121130.0,121120.0,1.09244263]
[1755100032270,0.08384447,121130.0,121120.0,1.22212263]
[1755100033475,0.08384447,121130.0,121120.0,0.6459]
[1755100033622,0.08384447,121130.0,121120.0,1.22212263]
[1755100033826,0.08384447,121130.0,121120.0,1.24686363]
[1755100035489,0.08384447,121130.0,121120.0,1.14398363]
[1755100035900,0.09419892,121130.0,121120.0,1.00912363]
[1755100036114,0.09714892,121130.0,121120.0,0.98438263]
[1755100036315,0.09714892,121130.0,121120.0,0.91618263]
[1755100036526,0.09714892,121130.0,121120.0,0.78654263]
[1755100036746,0.09714892,121130.0,121120.0,0.91618263]
[1755100038869,0.09419892,121130.0,121120.0,0.91826263]
[1755100039086,0.08384447,121130.0,121120.0,0.92136263]
[1755100040893,0.08384447,121130.0,121120.0,0.91826263]
[1755100041392,0.08384447,121130.0,121120.0,0.78862263]
[1755100041563,0.08384447,121130.0,121120.0,1.21894263]
[1755100041910,0.09449392,121130.0,121120.0,1.21894263]
[1755100042132,0.09744392,121130.0,121120.0,1.21894263]
[1755100043355,0.08384447,121130.0,121120.0,1.21894263]
[1755100043678,0.08384447,121130.0,121120.0,1.11606263]
[1755100044082,0.08384447,121130.0,121120.0,0.91822263]
[1755100044325,0.08384447,121130.0,121120.0,0.92132263]
[1755100044705,0.08384447,121130.0,121120.0,1.38925274]
[1755100044905,0.09222892,121130.0,121120.0,1.38615274]
[1755100046500,0.09222892,121130.0,121120.0,1.41089374]
[1755100048324,0.08384447,121130.0,121120.0,1.28129374]
[1755100048523,0.08384447,121130.0,121120.0,1.41395374]
[1755100051238,0.00112122,121130.0,121120.0,1.41391374]
[1755100051650,0.00112122,121130.0,121120.0,1.71463374]
[1755100052714,0.00112122,121130.0,121120.0,1.81810233]
[1755100054945,0.00112122,121130.0,121120.0,1.71522233]
[1755100057074,0.00112122,121130.0,121120.0,1.51738233]
[1755100057302,0.00112122,121130.0,121120.0,1.52134233]
[1755100059489,0.00112122,121130.0,121120.0,1.54582696]
[1755100060462,0.00112122,121130.0,121120.0,1.54578696]
[1755100061540,0.00112122,121130.0,121120.0,1.84646696]
[1755100063191,0.00112122,121130.0,121120.0,1.71698696]
[1755100063404,0.00112122,121130.0,121120.0,2.21811405]
[1755100063606,0.00112122,121130.0,121120.0,2.34755405]
[1755100063806,0.00112122,121130.0,121120.0,2.3266482]
[1755100064013,0.00112122,121130.0,121120.0,2.2238082]
[1755100064418,0.00012122,121130.0,121120.0,2.2238082]
[1755100065355,0.00012122,121130.0,121120.0,1.8975282]
[1755100065499,0.00012122,121130.0,121120.0,2.0269682]
[1755100065971,0.00012122,121130.0,121120.0,1.8975282]
[1755100066185,0.00012122,121130.0,121120.0,1.54325013]
[1755100066378,0.00012122,121130.0,121120.0,2.0004865]
[1755100068079,0.00012122,121130.0,121120.0,1.54325013]
[1755100068295,0.00012122,121130.0,121120.0,1.8975282]
[1755100068520,0.00012122,121130.0,121120.0,2.0269282]
[1755100070072,0.00012122,121130.0,121120.0,1.56969183]
[1755100070709,0.00012122,121130.0,121120.0,2.0269282]
[1755100071559,0.00012122,121130.0,121120.0,1.87033183]
[1755100072323,0.00012122,121130.0,121120.0,2.3275682]
[1755100073797,0.00012122,121130.0,121120.0,2.3275282]
[1755100074651,0.00012122,121130.0,121120.0,2.0268882]
[1755100077171,0.00012122,121130.0,121120.0,1.89195656]
[1755100077403,0.00012122,121130.0,121120.0,0.52024745]
[1755100077629,0.00012122,121130.0,121120.0,1.89195656]
[1755100078792,0.00012122,121130.0,121120.0,1.43472019]
[1755100079283,0.00012122,121130.0,121120.0,1.40827849]
[1755100080628,0.00012122,121130.0,121120.0,1.40823849]
[1755100080831,0.00530122,121130.0,121120.0,1.19117575]
[1755100081084,0.00530122,121130.0,121120.0,1.32045575]
[1755100081513,0.00530122,121130.0,121120.0,1.62109575]
[1755100083481,0.00530122,121130.0,121120.0,1.49181575]
[1755100083682,0.00530122,121130.0,121120.0,1.62109575]
[1755100083886,0.00530122,121130.0,121120.0,1.37152673]
[1755100084127,0.00530122,121130.0,121120.0,1.50080673]
[1755100084967,0.08802447,121130.0,121120.0,1.17372673]
[1755100085284,0.09682692,121130.0,121120.0,1.30300673]
[1755100086075,0.09682692,121130.0,121120.0,0.25925399]
[1755100086277,0.09682692,121130.0,121120.0,0.82128573]
[1755100086498,0.09682692,121130.0,121120.0,0.59147637]
[1755100086720,0.09682692,121130.0,121120.0,0.93147637]
[1755100087367,0.09682692,121130.0,121120.0,0.80219637]
[1755100087576,0.09682692,121130.0,121120.0,0.93147637]
[1755100087801,0.09682692,121130.0,121120.0,0.47424]
[1755100088002,0.09682692,121130.0,121120.0,0.93147637]
[1755100088209,0.09682692,121130.0,121120.0,0.47424]
[1755100088416,0.09682692,121130.0,121120.0,0.93147637]
[1755100088625,0.09682692,121130.0,121120.0,1.38871274]
[1755100089501,0.09682692,121130.0,121120.0,1.25943274]
[1755100089733,0.16367463,121130.0,121120.0,0.46219637]
[1755100089950,0.16367463,121130.0,121120.0,0.00496]
[1755100090171,0.16367463,121130.0,121120.0,0.59043637]
[1755100091086,0.15487218,121130.0,121120.0,0.46119637]
[1755100091366,0.15487218,121130.0,121120.0,0.59043637]
[1755100091585,0.15487218,121130.0,121120.0,0.89107637]
[1755100092042,0.15687218,121130.0,121120.0,0.89107637]
[1755100092262,0.15887218,121130.0,121120.0,0.89107637]
[1755100092534,0.1747594,121130.0,121120.0,0.89107637]
[1755100093189,0.2653194,121130.0,121120.0,0.2018]
[1755100093395,0.2903194,121130.0,121120.0,0.2018]
[1755100093603,0.2903194,121130.0,121120.0,0.33104]
[1755100094042,0.2903194,121130.0,121120.0,0.2018]
[1755100094263,0.77255577,121130.0,121120.0,0.2018]
[1755100094695,0.3153194,121130.0,121120.0,0.33104]
[1755100095113,0.3133194,121130.0,121120.0,0.33104]
[1755100095334,0.33426874,121130.0,121120.0,0.2018]
[1755100095544,0.33726874,121130.0,121120.0,0.33104]
[1755100095784,0.34226874,121130.0,121120.0,0.33104]
[1755100096011,0.33426874,121130.0,121120.0,0.33104]
[1755100096488,0.34426874,121130.0,121120.0,0.33104]
[1755100099024,0.26234,121110.0,121100.0,0.46023637]
[1755100099240,0.37338725,121110.0,121100.0,0.46023637]
[1755100099472,0.37338725,121110.0,121100.0,0.003]
[1755100099690,0.34506325,121110.0,121100.0,0.0236965]
[1755100099905,0.34506325,121110.0,121100.0,0.46539637]
[1755100100373,0.34506325,121110.0,121100.0,0.61329287]
[1755100100612,0.34706325,121110.0,121100.0,0.61329287]
[1755100101039,0.34706325,121110.0,121100.0,0.59463637]
[1755100101251,0.38376957,121110.0,121100.0,0.59463637]
[1755100101481,0.38376957,121110.0,121100.0,0.69439637]
[1755100101698,0.37976957,121110.0,121100.0,0.89227637]
[1755100101920,0.34506325,121110.0,121100.0,0.89227637]
[1755100102126,0.34906325,121110.0,121100.0,0.89539637]
[1755100102341,0.34906325,121110.0,121100.0,1.58983444]
[1755100102545,0.34906325,121110.0,121100.0,1.69263274]
[1755100102761,0.34906325,121110.0,121100.0,1.58983444]
[1755100102964,0.34906325,121110.0,121100.0,1.71903444]
[1755100103419,0.004,121110.0,121100.0,1.23535637]
[1755100104343,0.08472325,121110.0,121100.0,1.00015637]
[1755100104561,0.09528557,121110.0,121100.0,0.67212]
[1755100104762,0.09637557,121110.0,121100.0,1.12935637]
[1755100105187,0.09737557,121110.0,121100.0,0.93147637]
[1755100105823,0.09737557,121110.0,121100.0,0.80227637]
[1755100106021,0.09737557,121110.0,121100.0,0.93147637]
[1755100106259,0.08890325,121110.0,121100.0,0.93147637]
[1755100106471,0.08581325,121110.0,121100.0,0.93147637]
[1755100107150,0.08372325,121110.0,121100.0,0.93147637]
[1755100107779,0.08581325,121110.0,121100.0,0.93147637]
[1755100108016,0.09779357,121110.0,121100.0,0.80227637]
[1755100108261,0.09779357,121110.0,121100.0,0.48498237]
[1755100108477,0.09779357,121110.0,121100.0,0.58943637]
[1755100110282,0.09779357,121110.0,121100.0,0.46023637]
[1755100110497,0.09779357,121110.0,121100.0,0.58939637]
[1755100110923,0.09779357,121110.0,121100.0,0.13216]
[1755100111147,0.09779357,121110.0,121100.0,0.58939637]
[1755100111377,0.09779357,121110.0,121100.0,0.13216]
[1755100111610,0.09779357,121110.0,121100.0,0.89015637]
[1755100112544,0.09779357,121110.0,121100.0,0.76099637]
[1755100112757,0.09779357,121110.0,121100.0,0.89015637]
[1755100113416,0.09779357,121110.0,121100.0,0.65811637]
[1755100113640,0.09779357,121110.0,121100.0,0.78727637]
[1755100114109,0.09779357,121110.0,121100.0,0.33004]
[1755100114326,0.09779357,121110.0,121100.0,0.65511637]
[1755100114575,0.10079357,121110.0,121100.0,0.65511637]
[1755100115667,0.10079357,121110.0,121100.0,0.78427637]
[1755100116238,0.10079357,121110.0,121100.0,0.19788]
[1755100116429,0.10079357,121110.0,121100.0,0.32704]
[1755100116676,0.10079357,121110.0,121100.0,0.78427637]
[1755100117117,0.62547896,121110.0,121100.0,0.19788]
[1755100117304,0.025,121090.0,121060.0,0.003]
[1755100117542,0.08471325,121070.0,121060.0,0.003]
[1755100117979,0.08784325,121070.0,121060.0,0.46023637]
[1755100118213,0.08784325,121070.0,121060.0,0.58939637]
[1755100118727,0.08789216,121070.0,121060.0,0.13216]
[1755100118938,0.08789216,121070.0,121060.0,0.58939637]
[1755100119167,0.10365718,121070.0,121060.0,0.59146637]
[1755100119394,0.09653718,121070.0,121060.0,0.60929661]
[1755100119618,0.08277216,121070.0,121060.0,0.48017661]
[1755100119840,0.08577216,121070.0,121060.0,0.59146637]
[1755100120690,0.08777216,121070.0,121060.0,0.59146637]
[1755100120918,0.09289216,121070.0,121060.0,0.003]
[1755100121146,0.09289216,121070.0,121060.0,0.13216]
[1755100121367,0.10718138,121070.0,121060.0,0.13216]
[1755100121599,0.13218138,121070.0,121060.0,0.30384]
[1755100121789,0.13218138,121070.0,121060.0,0.433]
[1755100122367,0.19902909,121070.0,121060.0,0.30384]
[1755100122616,0.17202909,121070.0,121060.0,0.43296]
[1755100123063,0.16790909,121070.0,121060.0,0.7528853]
[1755100123606,0.17202909,121070.0,121060.0,0.433]
[1755100123824,0.15773987,121070.0,121060.0,0.30384]
[1755100124052,0.15973987,121070.0,121060.0,0.433]
[1755100124287,0.20973987,121070.0,121060.0,0.433]
[1755100124948,0.20973987,121070.0,121060.0,0.30384]
[1755100125165,0.23071386,121070.0,121060.0,0.433]
[1755100125828,0.13862715,121070.0,121060.0,0.30384]
[1755100126058,0.08777216,121070.0,121060.0,0.89175556]
[1755100126282,0.08777216,121070.0,121060.0,0.8820453]
[1755100126506,0.08777216,121070.0,121060.0,0.7791253]
[1755100126507,0.08725216,121070.0,121060.0,0.7791253]
[1755100126722,0.08725216,121070.0,121060.0,0.7804553]
[1755100126936,0.08725216,121070.0,121060.0,0.5825353]
[1755100127620,0.08225216,121070.0,121060.0,0.5825353]
[1755100127834,0.08425216,121070.0,121060.0,0.5825353]
[1755100128259,0.08425216,121070.0,121060.0,0.4533753]
[1755100128483,0.08425216,121070.0,121060.0,0.59829502]
[1755100128667,0.08425216,121070.0,121060.0,0.5825353]
[1755100128886,0.08525216,121070.0,121060.0,0.5825353]
[1755100129527,0.08425216,121070.0,121060.0,0.5825353]
[1755100129795,0.08425216,121070.0,121060.0,0.59829502]
[1755100129999,0.08425216,121070.0,121060.0,1.02729502]
[1755100130210,0.00204891,121070.0,121060.0,1.10989868]
[1755100130441,0.00204891,121070.0,121060.0,0.9982277]
[1755100130642,4.891e-05,121070.0,121060.0,1.52792625]
[1755100131069,4.891e-05,121070.0,121060.0,1.65704625]
[1755100131506,4.891e-05,121070.0,121060.0,2.06080625]
[1755100131923,4.891e-05,121070.0,121060.0,1.61383095]
[1755100132360,4.891e-05,121070.0,121060.0,1.61583095]
[1755100132775,4.891e-05,121070.0,121060.0,1.61883095]
[1755100133628,4.891e-05,121070.0,121060.0,1.28387095]
[1755100133819,4.891e-05,121070.0,121060.0,1.39519123]
[1755100134038,4.891e-05,121070.0,121060.0,1.39819123]
[1755100137273,4.891e-05,121070.0,121060.0,1.07119123]
[1755100137444,4.891e-05,121070.0,121060.0,1.20027123]
[1755100137647,4.891e-05,121070.0,121060.0,1.22501623]
[1755100138972,4.891e-05,121070.0,121060.0,1.09593623]
[1755100139185,4.891e-05,121070.0,121060.0,1.24021968]
[1755100141068,4.891e-05,121070.0,121060.0,0.79324438]
[1755100141312,4.891e-05,121070.0,121060.0,1.15117968]
[1755100141498,4.891e-05,121070.0,121060.0,1.55481968]
[1755100141721,4.891e-05,121070.0,121060.0,1.53961623]
[1755100142926,4.891e-05,121070.0,121060.0,1.02748799]
[1755100143143,4.891e-05,121070.0,121060.0,1.56003329]
[1755100143360,4.891e-05,121070.0,121060.0,1.68907329]
[1755100145182,0.00104891,121070.0,121060.0,1.68907329]
[1755100146021,0.00104891,121070.0,121060.0,1.66848153]
[1755100146469,0.00104891,121070.0,121060.0,1.66844153]
[1755100146722,0.00104891,121070.0,121060.0,1.53944153]
[1755100146944,0.00104891,121070.0,121060.0,1.00689623]
[1755100147163,0.00104891,121070.0,121060.0,1.13589623]
[1755100149009,0.00104891,121070.0,121060.0,1.13456623]
[1755100150316,0.00104891,121070.0,121060.0,1.13156623]
[1755100150667,0.00104891,121070.0,121060.0,1.13356623]
[1755100151261,0.00303891,121070.0,121060.0,1.00456623]
[1755100151480,0.00598891,121070.0,121060.0,0.9226003]
[1755100151701,0.00598891,121070.0,121060.0,0.7774803]
[1755100151923,0.00598891,121070.0,121060.0,0.7794803]
[1755100152142,0.00598891,121070.0,121060.0,1.1455603]
[1755100152585,0.00598891,121070.0,121060.0,1.1435603]
[1755100152810,0.00598891,121070.0,121060.0,1.1445603]
[1755100153239,0.00598891,121070.0,121060.0,1.1435603]
[1755100153455,0.00598891,121070.0,121060.0,1.1415603]
[1755100153959,0.00598891,121070.0,121060.0,1.1425603]
[1755100154179,0.00598891,121070.0,121060.0,1.1415603]
[1755100154400,0.00598891,121070.0,121060.0,0.8147203]
[1755100154624,0.00598891,121070.0,121060.0,0.9436803]
[1755100156832,0.00598891,121070.0,121060.0,1.02628396]
[1755100157052,0.00598891,121070.0,121060.0,0.96843033]
[1755100158633,0.00104891,121070.0,121060.0,1.07044301]
[1755100158857,0.00104891,121070.0,121060.0,1.07177301]
[1755100159301,0.00104891,121070.0,121060.0,1.07044301]
[1755100159516,0.00104891,121070.0,121060.0,1.07177301]
[1755100159723,0.00104891,121070.0,121060.0,1.07277301]
[1755100159935,0.00104891,121070.0,121060.0,1.47351156]
[1755100160146,0.00104891,121070.0,121060.0,1.60247156]
[1755100160603,0.00104891,121070.0,121060.0,1.60147156]
[1755100160822,0.00104891,121070.0,121060.0,1.60247156]
[1755100161043,0.00104891,121070.0,121060.0,1.60147156]
[1755100161310,0.00104891,121070.0,121060.0,1.47251156]
[1755100161524,0.00104891,121070.0,121060.0,2.00811156]
[1755100162365,0.00104891,121070.0,121060.0,2.00911156]
[1755100162824,0.00104891,121070.0,121060.0,2.00811156]
[1755100163260,0.00104891,121070.0,121060.0,2.01011156]
[1755100163480,0.00104891,121070.0,121060.0,1.56180626]
[1755100163704,0.00104891,121070.0,121060.0,1.53705623]
[1755100163931,0.00104891,121070.0,121060.0,1.43417623]
[1755100164826,0.00104891,121070.0,121060.0,1.5833055]
[1755100165068,0.00104891,121070.0,121060.0,1.62531083]
[1755100165282,0.00104891,121070.0,121060.0,1.75423083]
[1755100166125,0.00104891,121070.0,121060.0,1.26372648]
[1755100166350,0.00104891,121070.0,121060.0,1.11592721]
[1755100166796,0.00104891,121070.0,121060.0,1.13337623]
[1755100167003,0.00598891,121070.0,121060.0,1.13337623]
[1755100167216,0.00598891,121070.0,121060.0,1.13141623]
[1755100168109,0.00598891,121070.0,121060.0,1.13337623]
[1755100168291,0.00598891,121070.0,121060.0,1.00445623]
[1755100168490,0.00598891,121070.0,121060.0,0.68640093]
[1755100168715,0.00598891,121070.0,121060.0,1.00445623]
[1755100168968,0.00104891,121070.0,121060.0,1.13137623]
[1755100169219,0.00104891,121070.0,121060.0,1.60543156]
[1755100169440,0.00104891,121070.0,121060.0,1.13237623]
[1755100169876,0.00104891,121070.0,121060.0,1.12937623]
[1755100170094,0.00104891,121070.0,121060.0,1.12837623]
[1755100170249,0.00104891,121070.0,121060.0,1.13237623]
[1755100170463,0.00104891,121070.0,121060.0,1.13037623]
[1755100170676,0.00104891,121070.0,121060.0,1.13333623]
[1755100171468,0.00104891,121070.0,121060.0,1.53697623]
[1755100172666,0.00104891,121070.0,121060.0,1.6847755]
[1755100173827,0.00104891,121070.0,121060.0,1.5818955]
[1755100175026,0.00104891,121070.0,121060.0,1.2811355]
[1755100175795,0.00630891,121070.0,121060.0,1.2811355]
[1755100176015,0.00630891,121070.0,121060.0,1.04865298]
[1755100177056,0.00630891,121070.0,121060.0,1.04565298]
[1755100177269,0.00630891,121070.0,121060.0,1.04665298]
[1755100177470,0.00630891,121070.0,121060.0,0.91777298]
[1755100177675,0.00630891,121070.0,121060.0,1.04665298]
[1755100177890,0.00630891,121070.0,121060.0,1.04465298]
[1755100178092,0.00630891,121070.0,121060.0,1.04565298]
[1755100178501,0.00630891,121070.0,121060.0,0.91677298]
[1755100178717,0.00630891,121070.0,121060.0,1.04561298]
[1755100180527,0.26315975,121090.0,121070.0,0.35744902]
[1755100180735,0.00207,121080.0,121070.0,0.44019284]
[1755100180938,0.00207,121080.0,121070.0,0.48643605]
[1755100181153,0.00207,121080.0,121070.0,0.35759605]
[1755100181368,0.26522975,121080.0,121070.0,0.00014703]
[1755100181584,0.41480071,121080.0,121070.0,0.30090703]
[1755100181796,0.15164096,121080.0,121070.0,0.42974703]
[1755100182006,0.15164096,121080.0,121070.0,0.88716853]
[1755100182621,0.15483096,121080.0,121070.0,1.22716853]
[1755100182826,0.15583096,121080.0,121070.0,1.21664827]
[1755100183050,0.15583096,121080.0,121070.0,0.98492827]
[1755100183258,0.15583096,121080.0,121070.0,1.11376827]
[1755100183462,0.08898325,121080.0,121070.0,1.11376827]
[1755100184442,0.09198325,121080.0,121070.0,0.78704827]
[1755100184658,0.09198325,121080.0,121070.0,0.91588827]
[1755100184869,0.09198325,121080.0,121070.0,0.78704827]
[1755100185072,0.09198325,121080.0,121070.0,0.91588827]
[1755100187217,0.09198325,121080.0,121070.0,0.78704827]
[1755100187443,0.09198325,121080.0,121070.0,0.91588827]
[1755100187668,0.09198325,121080.0,121070.0,0.00014703]
[1755100187935,0.09198325,121080.0,121070.0,0.12898703]
[1755100188160,0.17784325,121080.0,121070.0,0.12898703]
[1755100188589,0.17784325,121080.0,121070.0,0.57588827]
[1755100191626,0.17784325,121080.0,121070.0,0.87664827]
[1755100192107,0.09198325,121080.0,121070.0,0.87664827]
[1755100193429,0.09198325,121080.0,121070.0,0.56001791]
[1755100194529,0.09198325,121080.0,121070.0,0.30076]
[1755100194743,0.09198325,121080.0,121070.0,0.87650124]
[1755100194984,0.09198325,121080.0,121070.0,0.77362124]
[1755100195202,0.10118158,121080.0,121060.0,0.003]
[1755100195425,0.08591325,121070.0,121060.0,0.44990124]
[1755100195651,0.08798325,121070.0,121060.0,0.003]
[1755100195869,0.08798325,121070.0,121060.0,0.13184]
[1755100196716,0.08798325,121070.0,121060.0,0.003]
[1755100196925,0.09800141,121070.0,121060.0,0.1318]
[1755100197143,0.09800141,121070.0,121060.0,0.003]
[1755100197795,0.09800141,121070.0,121060.0,0.1318]
[1755100198389,0.10000141,121070.0,121060.0,0.1318]
[1755100198597,0.10200141,121070.0,121060.0,0.1318]
[1755100198792,0.10000141,121070.0,121060.0,0.1318]
[1755100199043,0.10000141,121070.0,121060.0,0.003]
[1755100199261,0.08998325,121070.0,121060.0,0.003]
[1755100199508,0.08998325,121070.0,121060.0,0.44990124]
[1755100199721,0.08998325,121070.0,121060.0,0.57870124]
[1755100199933,0.08479325,121070.0,121060.0,0.59919074]
[1755100200142,0.08579325,121070.0,121060.0,0.59919074]
[1755100200371,0.08672325,121070.0,121060.0,0.81356074]
[1755100200644,0.07772325,121070.0,121060.0,0.94236074]
[1755100200847,0.07972325,121070.0,121060.0,0.94236074]
[1755100201268,0.07972325,121070.0,121060.0,0.92388124]
[1755100201471,0.07672325,121070.0,121060.0,1.22472124]
[1755100201685,0.07874325,121070.0,121060.0,1.09275124]
[1755100201901,0.07672325,121070.0,121060.0,1.22155124]
[1755100202144,0.07672325,121070.0,121060.0,0.77782]
[1755100202352,0.07874325,121070.0,121060.0,1.22155124]
[1755100202563,0.08793358,121070.0,121060.0,1.22155124]
[1755100202773,0.07772325,121070.0,121060.0,0.98983124]
[1755100202985,0.003,121070.0,121060.0,0.79508124]
[1755100203247,0.003,121070.0,121060.0,0.94218518]
[1755100203464,0.003,121070.0,121060.0,0.92388124]
[1755100203678,0.003,121070.0,121060.0,0.79508124]
[1755100203890,0.09090325,121070.0,121060.0,0.343]